bitfinex/quotes_ETHUSD_20250708
["timestamp","ask_amount","ask_price","bid_price","bid_amount"]
[1751944936242,0.0378252,2537.3,2537.2,1.35892319]
[1751944937059,0.0378252,2537.3,2537.2,5.30027586]
[1751944937348,0.0378252,2537.3,2537.2,16.06817586]
[1751944937934,0.0388252,2537.3,2537.2,16.06817586]
[1751944942761,0.0429126,2537.8,2537.3,4.49105169]
[1751944942762,0.0317378,2537.8,2537.3,4.49105169]
[1751944943070,0.0317378,2537.8,2537.7,0.7468]
[1751944943255,0.0317378,2537.8,2537.7,1.3408]
[1751944946442,0.8521378,2537.8,2537.7,1.3408]
[1751944949481,0.8521378,2537.8,2537.7,0.7468]
[1751944949772,0.8521378,2537.8,2537.7,1.3408]
[1751944949939,0.8521378,2537.8,2537.7,0.7468]
[1751944950159,0.8521378,2537.8,2537.7,1.3408]
[1751944952098,0.8521378,2537.8,2537.7,0.1968]
[1751944952399,0.8521378,2537.8,2537.5,0.7908]
[1751944953396,0.8521378,2537.8,2537.5,0.1968]
[1751944953690,0.8521378,2537.8,2537.5,0.7908]
[1751944954895,0.8521378,2537.8,2537.5,0.1968]
[1751944957380,0.0317378,2537.8,2537.6,0.55]
[1751944957699,0.0317378,2537.8,2537.7,0.1968]
[1751944957898,0.0317378,2537.8,2537.7,0.7468]
[1751944960897,0.0327378,2537.8,2537.7,0.7468]
[1751944994594,0.0327378,2537.8,2537.7,4.68737611]
[1751944994781,0.0327378,2537.8,2537.7,5.6098021]
[1751944995857,0.0327378,2537.8,2537.7,6.47480786]
[1751944999189,0.0327378,2537.8,2537.7,16.4354021]
[1751945000358,0.0327378,2537.8,2537.7,19.96948876]
[1751945000653,0.0327378,2537.8,2537.7,16.4354021]
[1751945001170,0.0327378,2537.8,2537.7,19.96948876]
[1751945001355,0.0327378,2537.8,2537.7,20.46948876]
[1751945017201,0.0327378,2537.8,2537.7,16.7038021]
[1751945020490,0.0327378,2537.8,2537.7,15.23137611]
[1751945020798,0.0327378,2537.8,2537.7,5.23137611]
[1751945021072,0.8231378,2537.8,2537.7,5.28137611]
[1751945022079,0.8231378,2537.8,2537.7,0.1968]
[1751945022446,0.8231378,2537.8,2537.7,0.7908]
[1751945024678,0.0327378,2537.8,2537.7,5.32078187]
[1751945024883,0.0327378,2537.8,2537.7,21.30483981]
[1751945025062,0.0327378,2537.8,2537.7,21.26543405]
[1751945026284,0.0327378,2537.8,2537.7,22.06543405]
[1751945026600,0.0327378,2537.8,2537.7,25.51965795]
[1751945027469,0.0429126,2538.3,2538.2,5.29569985]
[1751945027664,0.0429126,2538.3,2538.2,22.10995578]
[1751945027893,0.0429126,2538.3,2538.2,22.07055779]
[1751945028199,0.001,2538.9,2538.7,4.4890239]
[1751945028387,0.001,2538.9,2538.7,11.26388184]
[1751945029666,0.001,2538.9,2538.7,5.2798239]
[1751945031607,0.001,2538.9,2538.7,1.3418]
[1751945031815,0.8411126,2538.8,2538.7,1.3418]
[1751945033125,0.8411126,2538.8,2538.7,0.7918]
[1751945034721,0.8411126,2538.8,2538.7,0.1968]
[1751945035015,0.8411126,2538.8,2538.7,0.7918]
[1751945036216,0.8411126,2538.8,2538.7,4.7308239]
[1751945041022,0.0429126,2538.8,2538.7,4.7308239]
[1751945041724,0.0429126,2538.8,2538.7,5.2808239]
[1751945042714,0.0429126,2538.8,2538.7,6.8012291]
[1751945043423,0.0429126,2538.8,2538.7,5.2808239]
[1751945046628,0.0429126,2538.8,2538.7,5.7808239]
[1751945048029,0.0429126,2538.8,2538.7,0.7918]
[1751945048530,0.0429126,2538.8,2538.7,4.7308239]
[1751945050031,0.0429126,2538.8,2538.7,5.2808239]
[1751945069067,0.0439126,2538.8,2538.7,5.2808239]
[1751945092976,0.0439126,2538.8,2538.7,10.05232076]
[1751945096895,0.0439126,2538.8,2538.7,5.2808239]
[1751945098412,0.0439126,2538.8,2538.7,5.2798239]
[1751945107807,0.0439126,2538.8,2538.7,0.7908]
[1751945109699,0.0439126,2538.8,2538.7,0.1968]
[1751945109902,0.8758126,2538.8,2538.7,0.1968]
[1751945113180,0.0439126,2538.8,2538.7,0.1968]
[1751945121629,0.8192126,2538.8,2538.7,0.1968]
[1751945125330,0.0439126,2538.8,2538.7,0.7468]
[1751945125529,0.0439126,2538.8,2538.7,1.5557]
[1751945125731,0.0439126,2538.8,2538.7,5.53411413]
[1751945129127,0.0439126,2538.8,2538.7,6.12811413]
[1751945129912,0.0439126,2538.8,2538.7,7.73134338]
[1751945136376,0.0439126,2538.8,2538.7,7.69195315]
[1751945146954,0.0439126,2538.8,2538.7,17.73134338]
[1751945147268,0.0439126,2538.8,2538.7,17.69195315]
[1751945156716,0.0439126,2538.8,2538.7,19.13195315]
[1751945163317,0.0439126,2538.8,2538.7,16.7198239]
[1751945165533,0.0439126,2538.8,2538.7,17.5455239]
[1751945171818,0.0429126,2539.3,2539.2,5.29214826]
[1751945172018,0.0429126,2539.3,2539.2,12.04797851]
[1751945172218,0.0429126,2539.3,2539.2,25.04047255]
[1751945174562,0.0429126,2539.3,2539.2,25.3299703]
[1751945176637,0.0429126,2539.3,2539.2,24.23657255]
[1751945178190,0.0439126,2539.3,2539.2,24.52750425]
[1751945178339,0.0439126,2539.3,2539.2,25.34970425]
[1751945179955,0.0439126,2539.3,2539.2,31.30363725]
[1751945180267,0.0439126,2539.3,2539.2,28.81178725]
[1751945181340,0.0439126,2539.3,2539.2,28.48226625]
[1751945181534,0.0439126,2539.3,2539.2,25.34970425]
[1751945184866,0.0439126,2539.3,2539.2,18.2715423]
[1751945185080,0.0439126,2539.3,2539.2,0.1968]
[1751945185229,0.0439126,2539.3,2539.2,0.7908]
[1751945185554,0.0439126,2539.3,2539.2,0.7468]
[1751945185761,0.0439126,2539.3,2539.2,0.1968]
[1751945186072,0.8343126,2539.3,2539.2,0.7908]
[1751945186369,0.8343126,2539.3,2539.2,0.1968]
[1751945186664,0.8343126,2539.3,2539.2,0.7908]
[1751945189390,0.8343126,2539.3,2539.2,0.1968]
[1751945189564,0.8343126,2539.3,2539.2,0.7918]
[1751945190091,0.8343126,2539.3,2539.2,0.1968]
[1751945190384,0.8343126,2539.3,2539.1,0.1968]
[1751945206695,0.813,2539.1,2538.9,0.002]
[1751945206898,0.813,2539.1,2538.9,0.1988]
[1751945207407,0.813,2539.1,2538.9,0.002]
[1751945227905,2.2299239,2539.1,2538.9,0.002]
[1751945229021,0.813,2539.1,2538.9,0.002]
[1751945229407,0.29046234,2539.0,2538.9,0.002]
[1751945236447,11.02295107,2539.0,2538.9,0.002]
[1751945236748,12.75539364,2539.0,2538.9,0.002]
[1751945237043,22.75539364,2539.0,2538.9,0.002]
[1751945238339,24.52785069,2539.0,2538.9,0.002]
[1751945238550,22.75539364,2539.0,2538.9,0.002]
[1751945238926,24.52785069,2539.0,2538.9,0.002]
[1751945239422,22.75539364,2539.0,2538.9,0.002]
[1751945240224,24.52779013,2539.0,2538.9,0.002]
[1751945245746,26.56279013,2539.0,2538.9,0.002]
[1751945245934,26.59651871,2539.0,2538.9,0.002]
[1751945246134,24.82412222,2539.0,2538.9,0.002]
[1751945247823,24.8240875,2539.0,2538.9,0.002]
[1751945248225,26.59648399,2539.0,2538.9,0.002]
[1751945251134,24.8240875,2539.0,2538.9,0.002]
[1751945252757,14.92049877,2539.0,2538.9,0.002]
[1751945252960,12.65059877,2539.0,2538.9,0.002]
[1751945259063,16.58915725,2539.0,2538.9,0.002]
[1751945259271,12.65059877,2539.0,2538.9,0.002]
[1751945260862,12.05659877,2539.0,2538.9,0.002]
[1751945261066,1.96293643,2539.0,2538.9,0.002]
[1751945261373,1.13835643,2539.0,2538.9,0.002]
[1751945261570,0.7908,2539.0,2538.9,0.002]
[1751945261742,0.5443454,2539.0,2538.9,0.002]
[1751945261945,1.13834901,2539.0,2538.9,0.002]
[1751945262264,0.7908,2539.0,2538.9,0.002]
[1751945262579,1.13833118,2539.0,2538.9,0.002]
[1751945263063,2.55578152,2539.0,2538.9,0.002]
[1751945266775,2.92499117,2539.0,2538.9,0.002]
[1751945274485,2.92497408,2539.0,2538.9,0.002]
[1751945275878,2.92540295,2539.0,2538.9,0.002]
[1751945277488,2.92185166,2539.0,2538.9,0.002]
[1751945282271,2.55307367,2539.0,2538.9,0.002]
[1751945282466,2.92246972,2539.0,2538.9,0.002]
[1751945285375,2.9226088,2539.0,2538.9,0.002]
[1751945286613,12.82619753,2539.0,2538.9,0.002]
[1751945286768,13.62839753,2539.0,2538.9,0.002]
[1751945286971,22.43842001,2539.0,2538.9,0.002]
[1751945288771,20.02698813,2539.0,2538.9,0.002]
[1751945288985,25.99672465,2539.0,2538.9,0.002]
[1751945289188,23.6331038,2539.0,2538.9,0.002]
[1751945291284,23.63246045,2539.0,2538.9,0.002]
[1751945291515,23.63346045,2539.0,2538.9,0.002]
[1751945295404,3.93969825,2538.3,2537.9,0.8024]
[1751945295599,0.594,2538.2,2537.9,0.9992]
[1751945296091,4.53382879,2538.2,2537.9,0.8024]
[1751945296296,4.73062879,2538.2,2537.9,0.8024]
[1751945297190,0.7908,2538.2,2537.9,0.8024]
[1751945306392,0.1968,2538.2,2537.9,0.8024]
[1751945306592,10.594,2538.6,2537.9,0.8024]
[1751945306783,0.1968,2538.3,2537.9,0.9992]
[1751945311016,1.4162549,2538.5,2538.1,0.1968]
[1751945311190,1.4165964,2538.5,2538.1,0.1968]
[1751945312028,1.4165964,2538.5,2538.2,0.7882]
[1751945312234,2.63743604,2538.5,2538.2,0.7882]
[1751945313089,2.63743604,2538.5,2538.1,0.1968]
[1751945313294,0.1968,2538.4,2538.0,0.7612]
[1751945316920,0.35829102,2538.3,2538.0,0.7612]
[1751945318933,1.4165964,2538.5,2538.1,0.1968]
[1751945319104,0.7908,2538.6,2538.2,0.8269]
[1751945319308,0.35830021,2538.5,2538.2,0.8269]
[1751945319927,1.41866844,2538.8,2538.5,0.8269]
[1751945320136,0.3582595,2538.7,2538.5,0.8269]
[1751945320434,0.001,2538.9,2538.8,0.8269]
[1751945320599,0.35910157,2538.9,2538.8,0.8269]
[1751945321325,0.001,2538.9,2538.8,0.8269]
[1751945340354,0.001,2538.9,2538.8,0.8289]
[1751945341070,0.001,2538.9,2538.8,0.002]
[1751945355173,1.0022822,2538.9,2538.8,0.002]
[1751945356439,2.42196996,2538.9,2538.8,0.002]
[1751945357367,1.0022822,2538.9,2538.8,0.002]
[1751945357568,1.34926475,2538.9,2538.8,0.002]
[1751945358271,5.28797836,2538.9,2538.8,0.002]
[1751945358676,1.34926475,2538.9,2538.8,0.002]
[1751945360596,1.34921796,2538.9,2538.8,0.002]
[1751945361597,1.0022822,2538.9,2538.8,0.002]
[1751945364754,0.001,2538.9,2538.8,0.002]
[1751945368190,0.001,2538.9,2538.8,0.1988]
[1751945368557,0.001,2538.9,2538.8,0.9741]
[1751945381188,0.001,2538.9,2538.8,0.1988]
[1751945401519,0.7977,2538.9,2538.8,0.002]
[1751945401687,1.49684413,2538.9,2538.8,0.002]
[1751945402816,6.81588321,2538.9,2538.8,0.002]
[1751945403115,12.54376187,2538.9,2538.8,0.002]
[1751945403422,8.60504826,2538.9,2538.8,0.002]
[1751945403614,12.54376187,2538.9,2538.8,0.002]
[1751945403818,8.60504826,2538.9,2538.8,0.002]
[1751945405317,3.8317604,2538.9,2538.8,0.002]
[1751945406022,3.0350604,2538.9,2538.8,0.002]
[1751945406318,0.89694413,2538.9,2538.8,0.002]
[1751945406501,0.91667466,2538.9,2538.8,0.002]
[1751945407699,0.54713071,2538.9,2538.8,0.002]
[1751945408023,0.91664963,2538.9,2538.8,0.002]
[1751945412833,0.91833329,2538.9,2538.8,0.002]
[1751945414903,0.001,2538.9,2538.8,0.002]
[1751945415124,0.001,2538.9,2538.8,0.1988]
[1751945417940,0.7546,2538.9,2538.8,0.002]
[1751945418140,3.14189204,2538.9,2538.8,0.002]
[1751945420722,23.04696326,2538.9,2538.8,0.002]
[1751945422017,17.08060565,2538.9,2538.8,0.002]
[1751945423227,18.85492244,2538.9,2538.8,0.002]
[1751945423442,17.08060565,2538.9,2538.8,0.002]
[1751945423847,23.04696326,2538.9,2538.8,0.002]
[1751945424019,25.41528005,2538.9,2538.8,0.002]
[1751945424354,23.64096326,2538.9,2538.8,0.002]
[1751945424526,23.64360272,2538.9,2538.8,0.002]
[1751945424726,17.67724511,2538.9,2538.8,0.002]
[1751945425818,23.64360272,2538.9,2538.8,0.002]
[1751945426316,25.41791951,2538.9,2538.8,0.002]
[1751945426744,25.41750225,2538.9,2538.8,0.002]
[1751945427145,23.64318546,2538.9,2538.8,0.002]
[1751945427723,25.41750225,2538.9,2538.8,0.002]
[1751945427963,23.64318546,2538.9,2538.8,0.002]
[1751945428454,25.41750225,2538.9,2538.8,0.002]
[1751945429175,19.45114464,2538.9,2538.8,0.002]
[1751945430262,17.67682785,2538.9,2538.8,0.002]
[1751945430628,17.08282785,2538.9,2538.8,0.002]
[1751945430828,19.11782785,2538.9,2538.8,0.002]
[1751945431647,20.89214464,2538.9,2538.8,0.002]
[1751945434740,26.85850225,2538.9,2538.8,0.002]
[1751945435345,25.08418546,2538.9,2538.8,0.002]
[1751945436559,3.9395407,2538.4,2537.9,0.8067]
[1751945436732,0.1968,2538.1,2537.9,0.002]
[1751945436933,0.594,2538.0,2537.9,0.002]
[1751945438381,0.7908,2538.0,2537.9,0.002]
[1751945447870,2.26386024,2538.0,2537.9,0.002]
[1751945452478,0.7908,2538.0,2537.9,0.002]
[1751945458287,1.15129844,2538.0,2537.9,0.002]
[1751945461015,0.55729844,2538.0,2537.9,0.002]
[1751945461162,0.594,2538.0,2537.9,0.002]
[1751945461773,0.594,2538.2,2537.9,0.002]
[1751945461967,2.01110032,2538.2,2538.0,0.7587]
[1751945462184,0.594,2538.2,2538.0,0.7587]
[1751945462580,1.61428102,2538.4,2538.0,7.41764337]
[1751945462786,1.77124986,2538.6,2538.1,0.9555]
[1751945462787,1.41748102,2538.5,2538.1,0.9555]
[1751945462984,0.1968,2538.6,2538.1,0.9555]
[1751945462985,0.36032051,2538.4,2538.1,0.9555]
[1751945463189,0.1968,2538.6,2538.1,0.9555]
[1751945463466,0.72961939,2538.5,2538.1,0.9555]
[1751945463676,0.1968,2538.6,2538.1,0.9555]
[1751945463967,0.72948377,2538.5,2538.1,0.9555]
[1751945464172,0.1968,2538.6,2538.1,0.9555]
[1751945464381,0.72962213,2538.5,2538.1,0.9555]
[1751945464580,0.1968,2538.6,2538.1,0.9555]
[1751945464764,0.72865017,2538.5,2538.1,0.9555]
[1751945464966,0.1968,2538.6,2538.1,0.9555]
[1751945465183,0.35946705,2538.5,2538.1,0.9555]
[1751945468523,11.01010525,2538.5,2538.1,0.9555]
[1751945468696,0.55166166,2538.4,2538.1,0.7587]
[1751945468868,0.1968,2538.4,2538.1,0.7587]
[1751945469072,4.13640101,2538.4,2538.0,0.1968]
[1751945469372,11.0088,2538.2,2537.9,0.002]
[1751945469595,0.1968,2538.0,2537.9,0.002]
[1751945470466,4.13691032,2538.0,2537.9,0.002]
[1751945470683,0.55173093,2538.0,2537.9,0.002]
[1751945472678,1.14573093,2538.0,2537.9,0.002]
[1751945472883,2.24377944,2538.0,2537.9,0.002]
[1751945478317,2.61283828,2538.0,2537.9,0.002]
[1751945482211,2.62498771,2538.0,2537.9,0.002]
[1751945485109,2.62495689,2538.0,2537.9,0.002]
[1751945485309,2.25592887,2538.0,2537.9,0.002]
[1751945486421,1.66192887,2538.0,2537.9,0.002]
[1751945486716,1.15788036,2538.0,2537.9,0.002]
[1751945487014,1.15833508,2538.0,2537.9,0.002]
[1751945487215,0.7908,2538.0,2537.9,0.002]
[1751945491618,0.1968,2538.0,2537.9,0.002]
[1751945491806,0.7908,2538.0,2537.9,0.002]
[1751945492903,0.594,2538.0,2537.9,0.002]
[1751945497439,0.96006629,2538.0,2537.9,0.002]
[1751945503944,1.3296676,2538.0,2537.9,0.002]
[1751945504147,0.96006629,2538.0,2537.9,0.002]
[1751945505753,0.594,2538.0,2537.9,0.002]
[1751945506078,0.96036707,2538.0,2537.9,0.002]
[1751945508753,0.96242043,2538.0,2537.9,0.002]
[1751945512024,1.33209789,2538.0,2537.9,0.002]
[1751945512347,3.02088802,2538.0,2537.9,0.002]
[1751945512555,4.43979116,2538.0,2537.9,0.002]
[1751945513056,3.02059227,2538.0,2537.9,0.002]
[1751945513354,4.44029569,2538.0,2537.9,0.002]
[1751945514153,3.02059227,2538.0,2537.9,0.002]
[1751945514449,4.44029562,2538.0,2537.9,0.002]
[1751945515453,2.75150549,2538.0,2537.9,0.002]
[1751945515654,1.33180214,2538.0,2537.9,0.002]
[1751945518259,0.594,2538.0,2537.9,0.002]
[1751945518454,1.33220634,2538.0,2537.9,0.002]
[1751945518644,1.33220713,2538.0,2537.9,0.002]
[1751945521343,2.75191048,2538.0,2537.9,0.002]
[1751945522028,1.33220713,2538.0,2537.9,0.002]
[1751945522523,0.73820713,2538.0,2537.9,0.002]
[1751945528594,0.36834903,2538.0,2537.9,0.002]
[1751945528881,0.73813167,2538.0,2537.9,0.002]
[1751945531588,0.73813012,2538.0,2537.9,0.002]
[1751945532387,2.42703362,2538.0,2537.9,0.002]
[1751945532591,4.04412413,2538.0,2537.9,0.002]
[1751945533678,2.75242063,2538.0,2537.9,0.002]
[1751945533988,0.73813012,2538.0,2537.9,0.002]
[1751945535990,0.36826151,2538.0,2537.9,0.002]
[1751945541469,0.594,2538.1,2537.9,0.002]
[1751945543503,0.36314223,2538.0,2537.9,0.002]
[1751945548002,0.36314223,2538.1,2537.9,0.002]
[1751945548200,0.36314223,2538.0,2537.9,0.002]
[1751945549481,1.7829589,2538.1,2537.9,0.002]
[1751945549685,0.36314223,2538.0,2537.9,0.002]
[1751945549884,0.36314223,2538.1,2537.9,0.002]
[1751945550083,2.56786314,2538.5,2538.0,5.58569871]
[1751945550290,2.15194826,2538.4,2538.3,0.8099]
[1751945550477,0.36249558,2538.4,2538.3,0.8099]
[1751945550804,1.78148321,2538.7,2538.3,1.0067]
[1751945551012,0.73205243,2538.6,2538.3,1.0067]
[1751945551306,1.41898763,2538.7,2538.3,1.0067]
[1751945551486,0.36210554,2538.6,2538.3,1.0067]
[1751945551685,0.36210554,2538.5,2538.3,1.0067]
[1751945551910,0.36210554,2538.4,2538.3,1.0067]
[1751945552381,10.0,2538.7,2538.3,1.58494987]
[1751945552590,0.73154371,2538.6,2538.3,1.0067]
[1751945552804,1.3546,2538.8,2538.3,1.0067]
[1751945552805,0.3622573,2538.5,2538.3,1.0067]
[1751945553107,1.4178174,2538.7,2538.3,1.0067]
[1751945553304,0.73154788,2538.6,2538.3,1.0067]
[1751945553506,0.36225982,2538.5,2538.3,1.0067]
[1751945553683,1.3546,2538.8,2538.3,1.0067]
[1751945554011,0.73143496,2538.7,2538.3,1.0067]
[1751945554307,0.73143496,2538.6,2538.3,1.0067]
[1751945554510,0.3622039,2538.5,2538.3,1.0067]
[1751945554679,2.77166828,2538.8,2538.3,1.0067]
[1751945554873,0.73134596,2538.7,2538.3,1.0067]
[1751945555106,0.72654345,2538.6,2538.3,1.0067]
[1751945555310,0.35735799,2538.5,2538.3,1.0067]
[1751945555497,2.77140258,2538.8,2538.3,1.0067]
[1751945555699,0.72647119,2538.7,2538.3,1.0067]
[1751945555899,0.72647119,2538.6,2538.3,1.0067]
[1751945556199,0.3573225,2538.5,2538.3,1.0067]
[1751945556400,2.77140223,2538.8,2538.3,1.0067]
[1751945556612,0.72642092,2538.7,2538.3,1.0067]
[1751945556811,0.72642092,2538.6,2538.3,1.0067]
[1751945557014,0.35729779,2538.5,2538.3,1.0067]
[1751945557306,2.77118321,2538.8,2538.3,1.0067]
[1751945557513,0.72637895,2538.7,2538.3,1.0067]
[1751945557692,0.72637895,2538.6,2538.3,1.0067]
[1751945557894,0.35727715,2538.5,2538.3,1.0067]
[1751945558111,2.77102123,2538.8,2538.3,1.0067]
[1751945558305,0.7263838,2538.7,2538.3,1.0067]
[1751945558485,0.7263838,2538.6,2538.3,1.0067]
[1751945558685,0.35728008,2538.5,2538.3,1.0067]
[1751945558884,10.0,2538.7,2538.3,1.0067]
[1751945559201,0.35726546,2538.6,2538.3,1.0067]
[1751945559817,0.35726546,2538.5,2538.3,1.0087]
[1751945559985,11.3546,2538.8,2538.3,1.0087]
[1751945560184,0.35631442,2538.7,2538.3,1.0087]
[1751945560982,1.41710218,2538.8,2538.3,1.0087]
[1751945561209,0.001,2538.8,2538.3,1.0087]
[1751945561416,0.3571812,2538.8,2538.3,1.0087]
[1751945561602,0.001,2538.8,2538.4,6.0063482]
[1751945561813,0.001,2538.8,2538.7,0.8317]
[1751945564930,0.001,2538.8,2538.7,11.32706744]
[1751945565113,0.001,2538.9,2538.8,15.27066875]
[1751945566004,0.001,2539.0,2538.9,21.27016692]
[1751945566199,0.001,2539.0,2538.9,21.56923078]
[1751945566393,0.001,2539.0,2538.9,24.57334312]
[1751945567227,0.0439126,2539.3,2539.2,21.24860157]
[1751945567425,0.0439126,2539.3,2539.2,23.28360157]
[1751945572402,0.0439126,2539.3,2539.2,15.28164826]
[1751945572623,0.0439126,2539.3,2539.2,15.32664826]
[1751945572805,0.0439126,2539.3,2539.2,17.00331309]
[1751945573124,0.0439126,2539.3,2539.2,3.02006483]
[1751945573331,0.0439126,2539.3,2539.2,3.61506483]
[1751945573535,0.0439126,2539.3,2539.2,1.9384]
[1751945573732,0.0439126,2539.3,2539.2,5.87664826]
[1751945574839,0.0439126,2539.3,2539.2,1.9384]
[1751945575024,0.0439126,2539.3,2539.2,2.1352]
[1751945575338,0.0439126,2539.3,2539.2,0.7468]
[1751945575540,0.0439126,2539.3,2539.2,2.2826039]
[1751945577640,0.0439126,2539.3,2539.2,6.22085216]
[1751945583219,0.0439126,2539.3,2539.2,16.97395216]
[1751945587444,0.0439126,2539.3,2539.2,22.94090547]
[1751945592444,0.0439126,2539.3,2539.2,1.7326039]
[1751945592745,0.0439126,2539.3,2539.2,0.7918]
[1751945596746,0.0439126,2539.3,2539.2,0.1968]
[1751945620384,0.0439126,2539.3,2539.2,4.17443074]
[1751945620561,0.0439126,2539.3,2539.2,4.72443074]
[1751945626213,0.0439126,2539.3,2539.2,5.52123074]
[1751945626392,0.0439126,2539.3,2539.2,7.12368715]
[1751945629398,0.0439126,2539.3,2539.2,7.08430467]
[1751945630502,0.0439126,2539.3,2539.2,7.12368715]
[1751945631372,0.0439126,2539.3,2539.2,7.08430467]
[1751945637513,0.0439126,2539.3,2539.2,3.14605641]
[1751945638023,0.0439126,2539.3,2539.2,7.08430467]
[1751945639282,0.0439126,2539.3,2539.2,2.34925641]
[1751945639486,0.0439126,2539.3,2539.2,1.3418]
[1751945640305,0.0439126,2539.3,2539.2,0.7468]
[1751945640614,0.0439126,2539.3,2539.2,1.3418]
[1751945640783,0.0439126,2539.3,2539.2,0.1968]
[1751945640990,0.8768126,2539.3,2539.2,0.1968]
[1751945642611,0.0439126,2539.3,2539.2,0.1968]
[1751945650631,0.0439126,2539.3,2539.2,0.23618248]
[1751945659204,0.0439126,2539.3,2539.2,5.20159587]
[1751945659405,0.0439126,2539.3,2539.2,5.16221339]
[1751945660834,0.0439126,2539.3,2539.2,1.22396513]
[1751945661653,0.0439126,2539.3,2539.2,5.16221339]
[1751945662640,0.0439126,2539.3,2539.2,1.22396513]
[1751945668605,0.0439126,2539.3,2539.2,0.67396513]
[1751945668811,0.0439126,2539.3,2539.2,0.7908]
[1751945670946,0.0439126,2539.3,2539.2,0.1968]
[1751945705503,0.8307126,2539.3,2539.1,0.1968]
[1751945705681,5.55755246,2539.2,2539.1,0.1968]
[1751945706001,6.51149373,2539.2,2539.1,0.1968]
[1751945706790,1.74074127,2539.2,2539.1,0.1968]
[1751945706998,0.7868,2539.2,2539.1,0.1968]
[1751945707920,0.7868,2539.2,2539.0,0.002]
[1751945708973,6.77599681,2539.1,2539.0,0.002]
[1751945709173,12.48343646,2539.1,2539.0,0.002]
[1751945709482,12.73157564,2539.1,2539.0,0.002]
[1751945710016,14.14886968,2539.1,2539.0,0.002]
[1751945710396,12.73157564,2539.1,2539.0,0.002]
[1751945711090,14.14820804,2539.1,2539.0,0.002]
[1751945711291,12.73157564,2539.1,2539.0,0.002]
[1751945711682,14.14760322,2539.1,2539.0,0.002]
[1751945712086,12.73157564,2539.1,2539.0,0.002]
[1751945712711,13.32557564,2539.1,2539.0,0.002]
[1751945713420,23.32557564,2539.1,2539.0,0.002]
[1751945714322,24.74076009,2539.1,2539.0,0.002]
[1751945715295,23.32557564,2539.1,2539.0,0.002]
[1751945722908,24.73910376,2539.1,2539.0,0.002]
[1751945723421,18.17930695,2539.1,2539.0,0.002]
[1751945723833,20.21530695,2539.1,2539.0,0.002]
[1751945724009,26.18110376,2539.1,2539.0,0.002]
[1751945726417,24.76757564,2539.1,2539.0,0.002]
[1751945726930,26.18110615,2539.1,2539.0,0.002]
[1751945728065,25.83016134,2539.1,2539.0,0.002]
[1751945728356,26.19018634,2539.1,2539.0,0.002]
[1751945728643,25.83016134,2539.1,2539.0,0.002]
[1751945728843,26.19018635,2539.1,2539.0,0.002]
[1751945729040,25.83016134,2539.1,2539.0,0.002]
[1751945729246,26.19023549,2539.1,2539.0,0.002]
[1751945729447,25.83016134,2539.1,2539.0,0.002]
[1751945730349,26.19024819,2539.1,2539.0,0.002]
[1751945731240,20.80984482,2539.1,2539.0,0.002]
[1751945731470,14.84404801,2539.1,2539.0,0.002]
[1751945731751,14.25004801,2539.1,2539.0,0.002]
[1751945731924,10.594,2539.1,2539.0,0.002]
[1751945732125,10.95421939,2539.1,2539.0,0.002]
[1751945732530,10.594,2539.1,2539.0,0.002]
[1751945733238,10.95425054,2539.1,2539.0,0.002]
[1751945735419,12.37112351,2539.1,2539.0,0.002]
[1751945735749,0.95425054,2539.1,2539.0,0.002]
[1751945736222,0.95525054,2539.1,2539.0,0.002]
[1751945736417,0.36125054,2539.1,2539.0,0.002]
[1751945736622,0.95525054,2539.1,2539.0,0.002]
[1751945738253,0.36125054,2539.1,2539.0,0.002]
[1751945738454,0.95525054,2539.1,2539.0,0.002]
[1751945739458,0.36125054,2539.1,2539.0,0.002]
[1751945739648,0.95525054,2539.1,2539.0,0.002]
[1751945740225,0.95247885,2539.1,2539.0,0.002]
[1751945741553,0.35847885,2539.1,2539.0,0.002]
[1751945741739,0.001,2539.1,2539.0,0.002]
[1751945761451,0.35470963,2539.1,2539.0,0.002]
[1751945761654,1.61809983,2539.1,2539.0,0.002]
[1751945764783,0.35470963,2539.1,2539.0,0.002]
[1751945765383,0.001,2539.1,2539.0,0.002]
[1751945765555,0.35470963,2539.1,2539.0,0.002]
[1751945766176,0.35486075,2539.1,2539.0,0.002]
[1751945767990,0.001,2539.1,2539.0,0.002]
[1751945768160,0.35486075,2539.1,2539.0,0.002]
[1751945768355,0.001,2539.1,2539.0,0.002]
[1751945772494,0.35268946,2539.1,2539.0,0.002]
[1751945774394,1.61271123,2539.1,2539.0,0.002]
[1751945782899,0.35268946,2539.1,2539.0,0.002]
[1751945791376,0.35274626,2539.1,2539.0,0.002]
[1751945809125,0.35274626,2539.1,2539.0,0.8228]
[1751945809307,0.001,2539.1,2539.0,0.8228]
[1751945814118,0.001,2539.1,2539.0,1.0196]
[1751945814324,0.001,2539.1,2539.0,1.99284487]
[1751945822607,0.001,2539.1,2539.0,1.0196]
[1751945826558,0.001,2539.1,2539.0,0.1988]
[1751945826739,0.001,2539.1,2539.0,0.002]
[1751945828861,19.49335366,2539.1,2539.0,0.002]
[1751945829017,11.13070777,2539.1,2539.0,0.002]
[1751945829215,16.48721632,2539.1,2539.0,0.002]
[1751945830228,21.25926661,2539.1,2539.0,0.002]
[1751945831638,21.85326661,2539.1,2539.0,0.002]
[1751945832870,17.08121632,2539.1,2539.0,0.002]
[1751945833358,23.04831176,2539.1,2539.0,0.002]
[1751945835940,23.05405821,2539.1,2539.0,0.002]
[1751945836935,17.08696277,2539.1,2539.0,0.002]
[1751945844595,13.9955594,2539.1,2539.0,0.002]
[1751945844742,14.5895594,2539.1,2539.0,0.002]
[1751945846882,11.7726594,2539.1,2539.0,0.002]
[1751945847051,0.001,2539.1,2539.0,0.002]
[1751945853495,0.001,2539.1,2539.0,1.98177387]
[1751945859291,0.001,2539.1,2539.0,1.97545441]